[Event "*** Titled Tuesday Blitz"]
[Site "Chess.com"]
[Date "2021.02.02"]
[Round "6"]
[White "Tpros"]
[Black "Fischerev7"]
[Result "0-1"]
[WhiteElo "2503"]
[BlackElo "2385"]
[TimeControl "180+1"]
[EndTime "11:10:04 PST"]
[Termination "Fischerev7 won by checkmate"]

1. e4 {[%clk 0:03:00.9]} 1... c5 {[%clk 0:02:55.3]} 2. d3 {[%clk 0:03:01.2]}
2... g6 {[%clk 0:02:53.8]} 3. g3 {[%clk 0:03:01.6]} 3... Bg7 {[%clk 0:02:54.3]}
4. Bg2 {[%clk 0:03:02.5]} 4... e6 {[%clk 0:02:54.8]} 5. f4 {[%clk 0:03:02.9]}
5... Ne7 {[%clk 0:02:55.2]} 6. Nf3 {[%clk 0:03:02.1]} 6... O-O {[%clk
0:02:55.7]} 7. O-O {[%clk 0:03:01]} 7... d5 {[%clk 0:02:56.2]} 8. c3 {[%clk
0:02:59]} 8... Nbc6 {[%clk 0:02:52]} 9. e5 {[%clk 0:02:57.7]} 9... b5 {[%clk
0:02:49.3]} 10. Be3 {[%clk 0:02:49.8]} 10... d4 {[%clk 0:02:43.3]} 11. cxd4
{[%clk 0:02:49.9]} 11... cxd4 {[%clk 0:02:42.7]} 12. Nxd4 {[%clk 0:02:48.6]}
12... Nxd4 {[%clk 0:02:34.2]} 13. Bxa8 {[%clk 0:02:48.7]} 13... Ndf5 {[%clk
0:02:26.7]} 14. Bf2 {[%clk 0:02:45.5]} 14... Nd5 {[%clk 0:02:24.8]} 15. Qf3
{[%clk 0:02:28.5]} 15... f6 {[%clk 0:01:45.9]} 16. d4 {[%clk 0:02:24.4]} 16...
Nb6 {[%clk 0:01:42]} 17. Be4 {[%clk 0:02:23.4]} 17... Nxd4 {[%clk 0:01:37.1]}
18. Qd3 {[%clk 0:02:18.5]} 18... fxe5 {[%clk 0:01:35.1]} 19. fxe5 {[%clk
0:02:18.6]} 19... Nf3+ {[%clk 0:01:31]} 20. Kg2 {[%clk 0:02:14.8]} 20... Qxd3
{[%clk 0:01:28.7]} 21. Bxd3 {[%clk 0:02:15.2]} 21... Bb7 {[%clk 0:01:26.8]} 22.
Kh3 {[%clk 0:02:03.5]} 22... Ng5+ {[%clk 0:01:23.1]} 23. Kg4 {[%clk 0:01:57.8]}
23... Nf3 {[%clk 0:01:12.7]} 24. Bxb6 {[%clk 0:01:49]} 24... Nxe5+ {[%clk
0:01:09.4]} 25. Kh3 {[%clk 0:01:47.5]} 25... Nxd3 {[%clk 0:01:08.1]} 26. Rxf8+
{[%clk 0:01:42]} 26... Kxf8 {[%clk 0:01:09]} 27. Nc3 {[%clk 0:01:30.8]} 27...
axb6 {[%clk 0:01:07.5]} 28. Rf1+ {[%clk 0:01:28.4]} 28... Ke7 {[%clk 0:01:06.4]}
29. Nxb5 {[%clk 0:01:24.7]} 29... Bxb2 {[%clk 0:00:55.3]} 30. a4 {[%clk
0:01:09.5]} 30... h5 {[%clk 0:00:44.2]} 31. g4 {[%clk 0:01:07.9]} 31... Ne5
{[%clk 0:00:34.7]} 32. gxh5 {[%clk 0:01:07.4]} 32... gxh5 {[%clk 0:00:35.6]} 33.
Rf2 {[%clk 0:00:50.6]} 33... Nd3 {[%clk 0:00:28.5]} 34. Rc2 {[%clk 0:00:42.2]}
34... Be5 {[%clk 0:00:23.5]} 35. Kh4 {[%clk 0:00:28.6]} 35... Bf3 {[%clk
0:00:19.3]} 36. Rc4 {[%clk 0:00:20.6]} 36... Nf4 {[%clk 0:00:12.8]} 37. Kg5
{[%clk 0:00:16.2]} 37... Nh3+ {[%clk 0:00:11.4]} 38. Kg6 {[%clk 0:00:14]} 38...
Nf4+ {[%clk 0:00:11.1]} 39. Kg5 {[%clk 0:00:13.7]} 39... Nd5 {[%clk 0:00:10.4]}
40. Kg6 {[%clk 0:00:08.6]} 40... Bf6 {[%clk 0:00:07]} 41. Nc7 {[%clk 0:00:06]}
41... Be5 {[%clk 0:00:04.6]} 42. Nxd5+ {[%clk 0:00:06.1]} 42... Bxd5 {[%clk
0:00:05.5]} 43. Rb4 {[%clk 0:00:04.6]} 43... Bc7 {[%clk 0:00:06.1]} 44. Kxh5
{[%clk 0:00:04.5]} 44... Kd6 {[%clk 0:00:06.1]} 45. Kg6 {[%clk 0:00:04.6]} 45...
Kc5 {[%clk 0:00:06.6]} 46. Rh4 {[%clk 0:00:04]} 46... Bc6 {[%clk 0:00:04.6]} 47.
Rh8 {[%clk 0:00:02.6]} 47... Bxa4 {[%clk 0:00:01.7]} 48. Kf6 {[%clk 0:00:02.9]}
48... Kd6 {[%clk 0:00:02.6]} 49. Re8 {[%clk 0:00:02.3]} 49... Bxe8 {[%clk
0:00:02]} 50. h4 {[%clk 0:00:02.2]} 50... Bc6 {[%clk 0:00:02.9]} 51. h5 {[%clk
0:00:02.6]} 51... Be4 {[%clk 0:00:03.5]} 52. h6 {[%clk 0:00:02.7]} 52... Bb1
{[%clk 0:00:04.4]} 53. Kf7 {[%clk 0:00:02.8]} 53... Bh7 {[%clk 0:00:04.7]} 54.
Kg7 {[%clk 0:00:03.1]} 54... Bd3 {[%clk 0:00:05.6]} 55. Kf6 {[%clk 0:00:03.9]}
55... Kd7 {[%clk 0:00:05.9]} 56. Kf7 {[%clk 0:00:04.2]} 56... Be5 {[%clk
0:00:06.5]} 57. Kf8 {[%clk 0:00:04.3]} 57... Bb2 {[%clk 0:00:07.1]} 58. Kf7
{[%clk 0:00:04.7]} 58... b5 {[%clk 0:00:08]} 59. Kf8 {[%clk 0:00:05.3]} 59... b4
{[%clk 0:00:08.6]} 60. Kf7 {[%clk 0:00:06.2]} 60... b3 {[%clk 0:00:09.1]} 61.
Kf8 {[%clk 0:00:07.1]} 61... Bc3 {[%clk 0:00:09.7]} 62. Kf7 {[%clk 0:00:08]}
62... b2 {[%clk 0:00:10.3]} 63. h7 {[%clk 0:00:08.6]} 63... Bxh7 {[%clk
0:00:10.2]} 64. Kf8 {[%clk 0:00:09.2]} 64... Bd3 {[%clk 0:00:11.1]} 65. Kf7
{[%clk 0:00:10.1]} 65... b1=Q {[%clk 0:00:11.1]} 66. Kf8 {[%clk 0:00:10.9]}
66... Qb8+ {[%clk 0:00:11.3]} 67. Kf7 {[%clk 0:00:11.8]} 67... Qf4+ {[%clk
0:00:11]} 68. Kg8 {[%clk 0:00:11.3]} 68... Qg5+ {[%clk 0:00:11.3]} 69. Kf8
{[%clk 0:00:12.2]} 69... Qf6+ {[%clk 0:00:11.4]} 70. Kg8 {[%clk 0:00:12.5]}
70... Qg7# {[%clk 0:00:11.7]} 0-1

[Event "*** Titled Tuesday Blitz"]
[Site "Chess.com"]
[Date "2021.02.02"]
[Round "6"]
[White "Gmedmundo"]
[Black "Philosopherrr"]
[Result "0-1"]
[WhiteElo "2401"]
[BlackElo "2574"]
[TimeControl "180+1"]
[EndTime "11:10:05 PST"]
[Termination "Philosopherrr won on time"]

1. e4 {[%clk 0:03:00.9]} 1... e5 {[%clk 0:02:59.1]} 2. Nf3 {[%clk 0:03:00.6]}
2... Nc6 {[%clk 0:02:59]} 3. d4 {[%clk 0:03:00.5]} 3... exd4 {[%clk 0:02:58.8]}
4. Nxd4 {[%clk 0:03:00.5]} 4... Qf6 {[%clk 0:02:56.7]} 5. Nb5 {[%clk 0:02:50]}
5... Bc5 {[%clk 0:02:49.8]} 6. Qe2 {[%clk 0:02:44.5]} 6... Bb6 {[%clk 0:02:38]}
7. N1c3 {[%clk 0:02:43.1]} 7... Nge7 {[%clk 0:02:17.1]} 8. Bd2 {[%clk
0:02:42.3]} 8... O-O {[%clk 0:02:14.7]} 9. f4 {[%clk 0:02:26.8]} 9... d6 {[%clk
0:02:08.9]} 10. O-O-O {[%clk 0:02:23.7]} 10... a6 {[%clk 0:02:07.4]} 11. Na3
{[%clk 0:02:22.6]} 11... Nd4 {[%clk 0:02:05.6]} 12. Qd3 {[%clk 0:02:19.5]} 12...
c5 {[%clk 0:02:02.6]} 13. Nc4 {[%clk 0:02:17.6]} 13... Bc7 {[%clk 0:02:02.7]}
14. Ne3 {[%clk 0:02:16.4]} 14... b5 {[%clk 0:01:37.6]} 15. Ncd5 {[%clk 0:02:09]}
15... Nxd5 {[%clk 0:01:37.6]} 16. Nxd5 {[%clk 0:02:07.8]} 16... Qd8 {[%clk
0:01:37.6]} 17. c3 {[%clk 0:02:01.8]} 17... Nc6 {[%clk 0:01:36.8]} 18. Be2
{[%clk 0:01:56]} 18... Be6 {[%clk 0:01:27.1]} 19. Be3 {[%clk 0:01:50.3]} 19...
Bb8 {[%clk 0:01:01.5]} 20. h4 {[%clk 0:01:47]} 20... b4 {[%clk 0:00:53.9]} 21.
c4 {[%clk 0:01:45.5]} 21... Ra7 {[%clk 0:00:49.1]} 22. Bf3 {[%clk 0:01:42.8]}
22... a5 {[%clk 0:00:37.7]} 23. h5 {[%clk 0:01:41.3]} 23... h6 {[%clk
0:00:36.9]} 24. Kb1 {[%clk 0:01:36.7]} 24... a4 {[%clk 0:00:36.6]} 25. g4 {[%clk
0:01:34.8]} 25... a3 {[%clk 0:00:22]} 26. b3 {[%clk 0:01:32.7]} 26... Bxd5
{[%clk 0:00:20.9]} 27. Qxd5 {[%clk 0:01:27.7]} 27... Nd4 {[%clk 0:00:15.8]} 28.
Bxd4 {[%clk 0:01:16.6]} 28... cxd4 {[%clk 0:00:16.2]} 29. Rhg1 {[%clk
0:01:02.3]} 29... Rd7 {[%clk 0:00:16.1]} 30. g5 {[%clk 0:00:59.1]} 30... Kh8
{[%clk 0:00:16.5]} 31. gxh6 {[%clk 0:00:54.3]} 31... gxh6 {[%clk 0:00:16.8]} 32.
Qxd4+ {[%clk 0:00:52.9]} 32... f6 {[%clk 0:00:12.4]} 33. Rg6 {[%clk 0:00:51.3]}
33... Rh7 {[%clk 0:00:09.3]} 34. Qd5 {[%clk 0:00:47.3]} 34... Qe7 {[%clk
0:00:05.5]} 35. Rdg1 {[%clk 0:00:44.5]} 35... Qf7 {[%clk 0:00:05.9]} 36. Qxf7
{[%clk 0:00:42.2]} 36... Rhxf7 {[%clk 0:00:06.5]} 37. Rxh6+ {[%clk 0:00:41.4]}
37... Rh7 {[%clk 0:00:07]} 38. Rhg6 {[%clk 0:00:37.5]} 38... d5 {[%clk
0:00:07.2]} 39. exd5 {[%clk 0:00:33.2]} 39... Bxf4 {[%clk 0:00:07.7]} 40. Bg4
{[%clk 0:00:30.6]} 40... f5 {[%clk 0:00:06.1]} 41. Bxf5 {[%clk 0:00:28.5]} 41...
Rxh5 {[%clk 0:00:06.7]} 42. Be6 {[%clk 0:00:27]} 42... Be3 {[%clk 0:00:06.5]}
43. Rg8+ {[%clk 0:00:25.2]} 43... Rxg8 {[%clk 0:00:06.3]} 44. Rxg8+ {[%clk
0:00:23.4]} 44... Kh7 {[%clk 0:00:06.7]} 45. Rg3 {[%clk 0:00:20.1]} 45... Rh1+
{[%clk 0:00:05.2]} 46. Kc2 {[%clk 0:00:19.1]} 46... Rh2+ {[%clk 0:00:05.8]} 47.
Kd3 {[%clk 0:00:17.9]} 47... Bh6 {[%clk 0:00:06.2]} 48. Rh3 {[%clk 0:00:16.5]}
48... Rd2+ {[%clk 0:00:05.7]} 49. Ke4 {[%clk 0:00:15.6]} 49... Rxa2 {[%clk
0:00:06.2]} 50. d6 {[%clk 0:00:15.6]} 50... Rd2 {[%clk 0:00:05.3]} 51. d7 {[%clk
0:00:13.9]} 51... a2 {[%clk 0:00:05]} 52. Rh1 {[%clk 0:00:12]} 52... Kg7 {[%clk
0:00:05.3]} 53. Bd5 {[%clk 0:00:11.2]} 53... Bg5 {[%clk 0:00:05.1]} 54. c5
{[%clk 0:00:10.1]} 54... Kf8 {[%clk 0:00:04.4]} 55. c6 {[%clk 0:00:09.5]} 55...
Bd8 {[%clk 0:00:03.7]} 56. Rf1+ {[%clk 0:00:06.5]} 56... Ke7 {[%clk 0:00:03.9]}
57. Ke3 {[%clk 0:00:06.3]} 57... Rxd5 {[%clk 0:00:03.4]} 58. Ra1 {[%clk
0:00:03.6]} 58... Rb5 {[%clk 0:00:03.3]} 59. Rxa2 {[%clk 0:00:03.3]} 59... Bb6+
{[%clk 0:00:04]} 60. Kd3 {[%clk 0:00:03.1]} 60... Rc5 {[%clk 0:00:04.5]} 61. Ra8
{[%clk 0:00:01.1]} 61... Rc3+ {[%clk 0:00:05]} 0-1

[Event "*** Titled Tuesday Blitz"]
[Site "Chess.com"]
[Date "2021.02.02"]
[Round "6"]
[White "anantone"]
[Black "Forantes"]
[Result "1-0"]
[WhiteElo "2544"]
[BlackElo "2291"]
[TimeControl "180+1"]
[EndTime "11:10:06 PST"]
[Termination "anantone won by checkmate"]

1. e4 {[%clk 0:03:00.9]} 1... c5 {[%clk 0:02:59.5]} 2. Nf3 {[%clk 0:03:00.7]}
2... Nc6 {[%clk 0:03:00.2]} 3. d4 {[%clk 0:03:00.8]} 3... cxd4 {[%clk
0:03:00.6]} 4. Nxd4 {[%clk 0:03:01.7]} 4... g6 {[%clk 0:03:01]} 5. Nc3 {[%clk
0:02:57.5]} 5... Bg7 {[%clk 0:03:00.9]} 6. Nde2 {[%clk 0:02:58]} 6... Nf6 {[%clk
0:02:59.5]} 7. g3 {[%clk 0:02:57.7]} 7... O-O {[%clk 0:02:59.5]} 8. Bg2 {[%clk
0:02:58]} 8... d6 {[%clk 0:02:59.8]} 9. O-O {[%clk 0:02:58]} 9... Rb8 {[%clk
0:02:54.9]} 10. a4 {[%clk 0:02:57.2]} 10... b6 {[%clk 0:02:52.1]} 11. Nd5 {[%clk
0:02:57.2]} 11... Bb7 {[%clk 0:02:51.5]} 12. Bg5 {[%clk 0:02:53.9]} 12... Nxd5
{[%clk 0:02:40.6]} 13. exd5 {[%clk 0:02:54.8]} 13... Ne5 {[%clk 0:02:41.1]} 14.
Ra2 {[%clk 0:02:53.4]} 14... Qd7 {[%clk 0:02:39.1]} 15. b3 {[%clk 0:02:35.2]}
15... e6 {[%clk 0:02:27.3]} 16. c4 {[%clk 0:01:55.8]} 16... exd5 {[%clk
0:01:55.1]} 17. cxd5 {[%clk 0:01:55.5]} 17... Qf5 {[%clk 0:01:36.9]} 18. Be7
{[%clk 0:01:35.8]} 18... Nf3+ {[%clk 0:00:38.7]} 19. Bxf3 {[%clk 0:01:34.7]}
19... Qxf3 {[%clk 0:00:39.6]} 20. Nf4 {[%clk 0:01:35]} 20... Qxd1 {[%clk
0:00:34.5]} 21. Rxd1 {[%clk 0:01:35.8]} 21... Rfe8 {[%clk 0:00:34]} 22. Bxd6
{[%clk 0:01:34.1]} 22... Rbd8 {[%clk 0:00:34.1]} 23. Bc7 {[%clk 0:01:34.2]}
23... Rd7 {[%clk 0:00:33.9]} 24. d6 {[%clk 0:01:33.8]} 24... Be5 {[%clk
0:00:32.7]} 25. Re1 {[%clk 0:01:15.3]} 25... Kf8 {[%clk 0:00:24.7]} 26. Rae2
{[%clk 0:01:13.7]} 26... f6 {[%clk 0:00:14.5]} 27. Nd3 {[%clk 0:01:13.4]} 27...
Ba6 {[%clk 0:00:10.6]} 28. Nxe5 {[%clk 0:01:12.5]} 28... fxe5 {[%clk 0:00:05.9]}
29. Rxe5 {[%clk 0:01:12.2]} 29... Rxe5 {[%clk 0:00:06.4]} 30. Rxe5 {[%clk
0:01:12.9]} 30... Kf7 {[%clk 0:00:04.5]} 31. f4 {[%clk 0:01:11.3]} 31... Kf6
{[%clk 0:00:04.3]} 32. Kf2 {[%clk 0:01:10.7]} 32... Bb7 {[%clk 0:00:02.2]} 33.
g4 {[%clk 0:01:08.1]} 33... Bc6 {[%clk 0:00:01.4]} 34. Ke3 {[%clk 0:01:03.9]}
34... Rf7 {[%clk 0:00:01.1]} 35. h3 {[%clk 0:01:00.9]} 35... Kg7 {[%clk
0:00:01.8]} 36. f5 {[%clk 0:00:51.4]} 36... Bd7 {[%clk 0:00:01.8]} 37. Kf4
{[%clk 0:00:50]} 37... gxf5 {[%clk 0:00:02.2]} 38. gxf5 {[%clk 0:00:49.8]} 38...
Kf6 {[%clk 0:00:02.8]} 39. Bd8+ {[%clk 0:00:50]} 39... Kg7 {[%clk 0:00:03.2]}
40. f6+ {[%clk 0:00:45.5]} 40... Kg6 {[%clk 0:00:03.6]} 41. Rg5+ {[%clk
0:00:40.4]} 41... Kh6 {[%clk 0:00:04]} 42. h4 {[%clk 0:00:38.1]} 42... a6 {[%clk
0:00:03.5]} 43. Be7 {[%clk 0:00:37.5]} 43... b5 {[%clk 0:00:04]} 44. axb5 {[%clk
0:00:31.8]} 44... axb5 {[%clk 0:00:04.9]} 45. b4 {[%clk 0:00:23.7]} 45... Bc6
{[%clk 0:00:05.3]} 46. Ke5 {[%clk 0:00:21.6]} 46... Bd7 {[%clk 0:00:05.4]} 47.
Kd5 {[%clk 0:00:20.6]} 47... Be6+ {[%clk 0:00:04.8]} 48. Kc5 {[%clk 0:00:15.5]}
48... Bd7 {[%clk 0:00:05]} 49. Re5 {[%clk 0:00:13.2]} 49... Kg6 {[%clk
0:00:04.4]} 50. Kb6 {[%clk 0:00:12.4]} 50... Kh6 {[%clk 0:00:04.7]} 51. Kc7
{[%clk 0:00:12.5]} 51... Bg4 {[%clk 0:00:05.3]} 52. d7 {[%clk 0:00:12.6]} 52...
Bxd7 {[%clk 0:00:05.6]} 53. Kxd7 {[%clk 0:00:13.2]} 53... Kg6 {[%clk 0:00:06]}
54. Ke6 {[%clk 0:00:11.6]} 54... Kh6 {[%clk 0:00:03.8]} 55. Rxb5 {[%clk
0:00:08.3]} 55... Rxf6+ {[%clk 0:00:03.6]} 56. Bxf6 {[%clk 0:00:07.2]} 56... Kg6
{[%clk 0:00:03.6]} 57. Rg5+ {[%clk 0:00:07.7]} 57... Kh6 {[%clk 0:00:04]} 58.
Rg7 {[%clk 0:00:08.1]} 58... Kh5 {[%clk 0:00:03.7]} 59. Rxh7+ {[%clk 0:00:08.4]}
59... Kg4 {[%clk 0:00:04.4]} 60. Rf7 {[%clk 0:00:08.4]} 60... Kh5 {[%clk
0:00:04]} 61. b5 {[%clk 0:00:08.8]} 61... Kg6 {[%clk 0:00:04.3]} 62. b6 {[%clk
0:00:07.2]} 62... Kh6 {[%clk 0:00:04.8]} 63. b7 {[%clk 0:00:07.6]} 63... Kh5
{[%clk 0:00:05]} 64. b8=Q {[%clk 0:00:07.4]} 64... Kg4 {[%clk 0:00:05.1]} 65.
Qg8+ {[%clk 0:00:07.5]} 65... Kf4 {[%clk 0:00:04.6]} 66. Be7+ {[%clk 0:00:07.5]}
66... Ke4 {[%clk 0:00:05]} 67. Qg4+ {[%clk 0:00:07.4]} 67... Kd3 {[%clk
0:00:05]} 68. Rf3+ {[%clk 0:00:07.9]} 68... Kd2 {[%clk 0:00:05.5]} 69. Qg2+
{[%clk 0:00:08.4]} 69... Ke1 {[%clk 0:00:06.1]} 70. Rf1# {[%clk 0:00:08.9]} 1-0

[Event "*** Titled Tuesday Blitz"]
[Site "Chess.com"]
[Date "2021.02.02"]
[Round "6"]
[White "BahadirOzen"]
[Black "kikydu96"]
[Result "1/2-1/2"]
[WhiteElo "2729"]
[BlackElo "2584"]
[TimeControl "180+1"]
[EndTime "11:10:09 PST"]
[Termination "Game drawn by stalemate"]

1. g3 {[%clk 0:03:00.9]} 1... d5 {[%clk 0:02:51.9]} 2. Bg2 {[%clk 0:03:01.2]}
2... Nf6 {[%clk 0:02:51.1]} 3. d3 {[%clk 0:03:01.2]} 3... e5 {[%clk 0:02:50.2]}
4. Nf3 {[%clk 0:03:01]} 4... Nc6 {[%clk 0:02:49.9]} 5. O-O {[%clk 0:02:59.5]}
5... h6 {[%clk 0:02:48.7]} 6. a3 {[%clk 0:02:57.7]} 6... Be6 {[%clk 0:02:47.7]}
7. b4 {[%clk 0:02:57]} 7... a6 {[%clk 0:02:47]} 8. Bb2 {[%clk 0:02:56.8]} 8...
Bd6 {[%clk 0:02:45.2]} 9. Nbd2 {[%clk 0:02:49.2]} 9... O-O {[%clk 0:02:44.9]}
10. e4 {[%clk 0:02:40.9]} 10... Qd7 {[%clk 0:02:42.9]} 11. exd5 {[%clk
0:02:26.8]} 11... Bxd5 {[%clk 0:02:33]} 12. Re1 {[%clk 0:02:19.7]} 12... Rfe8
{[%clk 0:02:29.1]} 13. c4 {[%clk 0:02:19.4]} 13... Be6 {[%clk 0:02:24.5]} 14. c5
{[%clk 0:02:00.3]} 14... Bf8 {[%clk 0:02:23.4]} 15. Nxe5 {[%clk 0:01:55.9]}
15... Nxe5 {[%clk 0:02:21.9]} 16. Bxe5 {[%clk 0:01:56.8]} 16... Nd5 {[%clk
0:01:55.6]} 17. Qc2 {[%clk 0:01:52.3]} 17... Rad8 {[%clk 0:01:52.1]} 18. Nc4
{[%clk 0:01:40.9]} 18... Bf5 {[%clk 0:01:44.7]} 19. Be4 {[%clk 0:01:27.7]} 19...
f6 {[%clk 0:01:21.4]} 20. Bb2 {[%clk 0:01:26.3]} 20... Be6 {[%clk 0:01:00.9]}
21. d4 {[%clk 0:01:20.4]} 21... Qb5 {[%clk 0:00:38.6]} 22. Bg6 {[%clk
0:01:02.3]} 22... Bf7 {[%clk 0:00:32.7]} 23. Bxf7+ {[%clk 0:00:56.9]} 23... Kxf7
{[%clk 0:00:33.6]} 24. Rad1 {[%clk 0:00:54.8]} 24... Rxe1+ {[%clk 0:00:28.3]}
25. Rxe1 {[%clk 0:00:54.4]} 25... Re8 {[%clk 0:00:29.2]} 26. Re2 {[%clk
0:00:48.7]} 26... Rxe2 {[%clk 0:00:23.3]} 27. Qxe2 {[%clk 0:00:49.6]} 27... Qd7
{[%clk 0:00:22.8]} 28. Qe4 {[%clk 0:00:32.7]} 28... Qe6 {[%clk 0:00:21.8]} 29.
f3 {[%clk 0:00:23.4]} 29... Ne7 {[%clk 0:00:13.8]} 30. Ne3 {[%clk 0:00:19.3]}
30... Qa2 {[%clk 0:00:11.4]} 31. Qc2 {[%clk 0:00:18.4]} 31... Nd5 {[%clk
0:00:10.8]} 32. Nxd5 {[%clk 0:00:17.7]} 32... Qxd5 {[%clk 0:00:11.7]} 33. Kf2
{[%clk 0:00:17]} 33... g6 {[%clk 0:00:10.4]} 34. Qe4 {[%clk 0:00:11.4]} 34...
Qa2 {[%clk 0:00:06.9]} 35. Qe2 {[%clk 0:00:11.4]} 35... f5 {[%clk 0:00:05.5]}
36. Bc1 {[%clk 0:00:10.7]} 36... Qxe2+ {[%clk 0:00:03.9]} 37. Kxe2 {[%clk
0:00:10.7]} 37... Ke6 {[%clk 0:00:04.8]} 38. Kd3 {[%clk 0:00:10]} 38... Kd5
{[%clk 0:00:05.1]} 39. h4 {[%clk 0:00:09.9]} 39... c6 {[%clk 0:00:05.3]} 40. a4
{[%clk 0:00:09.9]} 40... Bg7 {[%clk 0:00:05.3]} 41. Be3 {[%clk 0:00:10.3]} 41...
g5 {[%clk 0:00:04.6]} 42. hxg5 {[%clk 0:00:09.7]} 42... hxg5 {[%clk 0:00:05.5]}
43. Bxg5 {[%clk 0:00:09.6]} 43... Bxd4 {[%clk 0:00:06.2]} 44. Bd2 {[%clk
0:00:10]} 44... Be5 {[%clk 0:00:06]} 45. g4 {[%clk 0:00:09.9]} 45... fxg4 {[%clk
0:00:06.5]} 46. fxg4 {[%clk 0:00:10.7]} 46... Bf6 {[%clk 0:00:06.7]} 47. g5
{[%clk 0:00:10.2]} 47... Be7 {[%clk 0:00:05.2]} 48. g6 {[%clk 0:00:08.5]} 48...
Bf8 {[%clk 0:00:04.8]} 49. Bc3 {[%clk 0:00:08.2]} 49... a5 {[%clk 0:00:05.3]}
50. bxa5 {[%clk 0:00:05.9]} 50... Kxc5 {[%clk 0:00:05.2]} 51. Bd2 {[%clk
0:00:03.9]} 51... Kd6 {[%clk 0:00:04.8]} 52. Bb4+ {[%clk 0:00:03.3]} 52... c5
{[%clk 0:00:05.2]} 53. Bc3 {[%clk 0:00:04.2]} 53... Kc6 {[%clk 0:00:05.6]} 54.
Kc4 {[%clk 0:00:04.1]} 54... b6 {[%clk 0:00:05.6]} 55. a6 {[%clk 0:00:04]} 55...
Kc7 {[%clk 0:00:06]} 56. Kb5 {[%clk 0:00:04.8]} 56... Kb8 {[%clk 0:00:05.9]} 57.
Kxb6 {[%clk 0:00:04.4]} 57... Ka8 {[%clk 0:00:06.5]} 58. g7 {[%clk 0:00:03.1]}
58... Bxg7 {[%clk 0:00:06.7]} 59. Bxg7 {[%clk 0:00:04]} 59... Kb8 {[%clk
0:00:07]} 60. Bc3 {[%clk 0:00:04.4]} 60... Ka8 {[%clk 0:00:07.6]} 61. Kb5 {[%clk
0:00:02.6]} 61... c4 {[%clk 0:00:08.5]} 62. Bb4 {[%clk 0:00:02.6]} 62... c3
{[%clk 0:00:08.5]} 63. Ba3 {[%clk 0:00:03.2]} 63... c2 {[%clk 0:00:08.6]} 64.
Bc1 {[%clk 0:00:03.6]} 64... Kb8 {[%clk 0:00:08.6]} 65. Kb6 {[%clk 0:00:04.1]}
65... Ka8 {[%clk 0:00:09.1]} 66. a5 {[%clk 0:00:02.9]} 66... Kb8 {[%clk
0:00:09.5]} 67. Kc6 {[%clk 0:00:03.2]} 67... Ka8 {[%clk 0:00:10.4]} 68. Kb5
{[%clk 0:00:03.8]} 68... Kb8 {[%clk 0:00:10.9]} 69. Kc4 {[%clk 0:00:03.2]} 69...
Ka8 {[%clk 0:00:11.8]} 70. Kb5 {[%clk 0:00:03.2]} 70... Kb8 {[%clk 0:00:12.1]}
71. Kb6 {[%clk 0:00:03.3]} 71... Ka8 {[%clk 0:00:13]} 72. a7 {[%clk 0:00:03.9]}
1/2-1/2